fUSD/lending_fUSD_20250427
["ID","MTS","AMOUNT","RATE_DAILY","PERIOD"]
[359176757,1745775032838,-500.0,0.00019962,2]
[359176758,1745775032848,-500.0,0.00019962,2]
[359176759,1745775032857,-500.97451331,0.00019962,2]
[359176760,1745775032867,-500.0,0.00019962,2]
[359176761,1745775032876,-500.0,0.00019962,2]
[359176762,1745775032885,-254.51467933,0.00019962,2]
[359176763,1745775032895,-500.0,0.00019962,2]
[359176764,1745775032905,-1000.0,0.00019962,2]
[359176765,1745775032915,-500.0,0.00019962,2]
[359176766,1745775032926,-500.0,0.00019962,2]
[359176767,1745775032936,-500.0,0.00019962,2]
[359176768,1745775032947,-556.74469886,0.00019962,2]
[359176769,1745775032956,-480.0,0.00019962,2]
[359176770,1745775032966,-500.0,0.00019962,2]
[359176771,1745775032975,-500.0,0.00019962,2]
[359176772,1745775032985,-500.0,0.00019962,2]
[359176773,1745775032994,-500.0,0.00019962,2]
[359176774,1745775033004,-500.0,0.00019962,2]
[359176775,1745775033014,-304.06633702,0.00019962,2]
[359176776,1745775033023,-500.0,0.00019962,2]
[359176777,1745775033032,-480.0,0.00019962,2]
[359176778,1745775033042,-500.0,0.00019962,2]
[359176779,1745775033052,-500.0,0.00019962,2]
[359176780,1745775033063,-500.0,0.00019962,2]
[359176781,1745775033073,-500.0,0.00019962,2]
[359176782,1745775033083,-500.0,0.00019962,2]
[359176783,1745775033092,-462.46177178,0.00019962,2]
[359176784,1745775033103,-500.0,0.00019962,2]
[359176785,1745775033113,-500.0,0.00019962,2]
[359176786,1745775033123,-500.0,0.00019962,2]
[359176787,1745775033133,-500.0,0.00019962,2]
[359176788,1745775033143,-480.0,0.00019962,2]
[359176789,1745775033153,-480.0,0.00019962,2]
[359176790,1745775033163,-500.0,0.00019962,2]
[359176791,1745775033172,-500.0,0.00019962,2]
[359176792,1745775033182,-500.0,0.00019962,2]
[359176793,1745775033192,-363.00050792,0.00019962,2]
[359176794,1745775033202,-505.47001705,0.00019962,2]
[359176795,1745775033212,-564.15497355,0.00019962,2]
[359176796,1745775033222,-480.0,0.00019962,2]
[359176797,1745775033231,-480.0,0.00019962,2]
[359176798,1745775033241,-500.0,0.00019962,2]
[359176799,1745775033251,-329.49674373,0.00019962,2]
[359176800,1745775033261,-608.22,0.00019962,2]
[359176801,1745775033271,-500.0,0.00019962,2]
[359176802,1745775033281,-306.59375341,0.00019962,2]
[359176803,1745775033291,-500.0,0.00019962,2]
[359176804,1745775033301,-480.0,0.00019962,2]
[359176805,1745775033311,-393.18808311,0.00019962,2]
[359176806,1745775033322,-500.0,0.00019962,2]
[359176807,1745775033332,-500.0,0.00019962,2]
[359176808,1745775033342,-500.0,0.00019962,2]
[359176809,1745775033352,-500.0,0.00019962,2]
[359176810,1745775033362,-500.0,0.00019962,2]
[359176811,1745775033372,-500.0,0.00019962,2]
[359176812,1745775033382,-500.0,0.00019962,2]
[359176813,1745775033392,-480.0,0.00019962,2]
[359176814,1745775033402,-500.0,0.00019962,2]
[359176815,1745775033415,-480.0,0.00019962,2]
[359176816,1745775033425,-500.0,0.00019962,2]
[359176817,1745775033434,-500.0,0.00019962,2]
[359176818,1745775033444,-480.0,0.00019962,2]
[359176819,1745775033454,-500.0,0.00019962,2]
[359176820,1745775033464,-500.0,0.00019962,2]
[359176821,1745775033474,-500.0,0.00019962,2]
[359176822,1745775033483,-500.0,0.00019962,2]
[359176823,1745775033494,-500.0,0.00019962,2]
[359176824,1745775033505,-500.0,0.00019962,2]
[359176825,1745775033515,-537.66,0.00019962,2]
[359176826,1745775033525,-480.0,0.00019962,2]
[359176827,1745775033535,-500.0,0.00019962,2]
[359176828,1745775033545,-480.0,0.00019962,2]
[359176829,1745775033554,-500.0,0.00019962,2]
[359176830,1745775033564,-500.0,0.00019962,2]
[359176831,1745775033574,-480.0,0.00019962,2]
[359176832,1745775033584,-500.0,0.00019962,2]
[359176833,1745775033594,-500.0,0.00019962,2]
[359176834,1745775033604,-480.0,0.00019962,2]
[359176835,1745775033613,-500.0,0.00019962,2]
[359176836,1745775033623,-500.0,0.00019962,2]
[359176837,1745775033632,-539.07,0.00019962,2]
[359176838,1745775033642,-251.82694245,0.00019962,2]
[359176839,1745775033657,-228.17305755,0.00019962,2]
[359176840,1745775033667,-500.0,0.00019962,2]
[359176841,1745775033676,-13.8427006,0.00019962,2]
[359176842,1745775033688,-466.1572994,0.00019962,2]
[359176843,1745775033697,-61.06506055,0.00019962,2]
[359176844,1745775033715,-418.93493945,0.00019962,2]
[359176845,1745775033725,-152.86445671,0.00019962,2]
[359176846,1745775037531,-1306.95217789,0.0001987,2]
[359176847,1745775037541,-1316.52511726,0.000199,2]
[359176848,1745775037551,-220.95533522,0.00019962,2]
[359176849,1745775037643,-1306.95217789,0.00019875,2]
[359176850,1745775037652,-126.18020807,0.00019962,2]
[359176851,1745775037662,-500.0,0.00019962,2]
[359176852,1745775037672,-500.0,0.00019962,2]
[359176853,1745775037682,-500.0,0.00019962,2]
[359176854,1745775037691,-480.0,0.00019962,2]
[359176855,1745775037700,-500.0,0.00019962,2]
[359176856,1745775037709,-480.0,0.00019962,2]
[359176857,1745775037719,-500.0,0.00019962,2]
[359176858,1745775037729,-500.0,0.00019962,2]
[359176859,1745775037738,-500.0,0.00019962,2]
[359176860,1745775037747,-500.0,0.00019962,2]
[359176861,1745775037756,-480.0,0.00019962,2]
[359176862,1745775037766,-625.83293023,0.00019962,2]
[359176863,1745775037776,-587.58,0.00019962,2]
[359176864,1745775037785,-480.0,0.00019962,2]
[359176865,1745775037793,-500.0,0.00019962,2]
[359176866,1745775037801,-500.0,0.00019962,2]
[359176867,1745775037809,-514.06,0.00019962,2]
[359176868,1745775037817,-500.0,0.00019962,2]
[359176869,1745775037825,-500.0,0.00019962,2]
[359176870,1745775037834,-500.0,0.00019962,2]
[359176871,1745775037843,-570.16558119,0.00019962,2]
[359176872,1745775037852,-500.0,0.00019962,2]
[359176873,1745775037861,-500.0,0.00019962,2]
[359176875,1745775037870,-500.0,0.00019962,2]
[359176877,1745775037879,-500.0,0.00019962,2]
[359176878,1745775037888,-500.0,0.00019962,2]
[359176879,1745775037898,-563.68849884,0.00019962,2]
[359176880,1745775037907,-500.0,0.00019962,2]
[359176881,1745775037916,-480.0,0.00019962,2]
[359176883,1745775037925,-619.2,0.00019962,2]
[359176885,1745775037934,-480.0,0.00019962,2]
[359176887,1745775037943,-542.82,0.00019962,2]
[359176888,1745775037952,-548.03467854,0.00019962,2]
[359176890,1745775037961,-500.0,0.00019962,2]
[359176892,1745775037970,-500.0,0.00019962,2]
[359176894,1745775037979,-480.0,0.00019962,2]
[359176896,1745775037988,-515.62903371,0.00019962,2]
[359176898,1745775037997,-539.20585992,0.00019962,2]
[359176900,1745775038006,-480.0,0.00019962,2]
[359176902,1745775038015,-480.0,0.00019962,2]
[359176903,1745775038024,-500.0,0.00019962,2]
[359176904,1745775038033,-480.0,0.00019962,2]
[359176905,1745775038042,-480.0,0.00019962,2]
[359176906,1745775038051,-500.0,0.00019962,2]
[359176907,1745775038060,-523.70659593,0.00019962,2]
[359176908,1745775038068,-500.0,0.00019962,2]
[359176909,1745775038077,-500.0,0.00019962,2]
[359176911,1745775038086,-500.0,0.00019962,2]
[359176912,1745775038095,-500.0,0.00019962,2]
[359176913,1745775038104,-500.0,0.00019962,2]
[359176914,1745775038113,-500.0,0.00019962,2]
[359176915,1745775038124,-480.0,0.00019962,2]
[359176916,1745775038134,-515.85010627,0.00019962,2]
[359176917,1745775038143,-500.0,0.00019962,2]
[359176918,1745775038152,-500.0,0.00019962,2]
[359176919,1745775038163,-500.0,0.00019962,2]
[359176920,1745775038174,-500.0,0.00019962,2]
[359176921,1745775038184,-500.0,0.00019962,2]
[359176922,1745775038194,-508.23924249,0.00019962,2]
[359176923,1745775038203,-500.0,0.00019962,2]
[359176924,1745775038215,-500.0,0.00019962,2]
[359176925,1745775038226,-500.0,0.00019962,2]
[359176926,1745775038235,-500.0,0.00019962,2]
[359176927,1745775038244,-28.62555961,0.00019962,2]
[359176928,1745775038257,-471.37444039,0.00019962,2]
[359176929,1745775038266,-500.0,0.00019962,2]
[359176930,1745775038275,-500.0,0.00019962,2]
[359176931,1745775038284,-500.0,0.00019962,2]
[359176932,1745775038293,-500.0,0.00019962,2]
[359176933,1745775038302,-480.0,0.00019962,2]
[359176934,1745775038311,-500.0,0.00019962,2]
[359176935,1745775038320,-480.0,0.00019962,2]
[359176936,1745775038330,-480.0,0.00019962,2]
[359176937,1745775038341,-500.0,0.00019962,2]
[359176938,1745775038350,-500.0,0.00019962,2]
[359176939,1745775038360,-500.0,0.00019962,2]
[359176940,1745775038369,-500.0,0.00019962,2]
[359176941,1745775038379,-500.0,0.00019962,2]
[359176942,1745775038388,-500.0,0.00019962,2]
[359176943,1745775038397,-567.72,0.00019962,2]
[359176944,1745775038409,-500.0,0.00019962,2]
[359176945,1745775038419,-500.0,0.00019962,2]
[359176946,1745775038428,-500.0,0.00019962,2]
[359176947,1745775038438,-500.0,0.00019962,2]
[359176948,1745775038447,-564.02068591,0.00019962,2]
[359176949,1745775038457,-520.45,0.00019962,2]
[359176950,1745775038466,-500.0,0.00019962,2]
[359176951,1745775038476,-510.89806514,0.00019962,2]
[359176952,1745775038486,-500.0,0.00019962,2]
[359176953,1745775038497,-480.0,0.00019962,2]
[359176954,1745775038508,-500.0,0.00019962,2]
[359176955,1745775038517,-600.41,0.00019962,2]
[359176956,1745775038527,-500.0,0.00019962,2]
[359176957,1745775038536,-500.0,0.00019962,2]
[359176958,1745775038545,-480.0,0.00019962,2]
[359176959,1745775038555,-520.13321977,0.00019962,2]
[359176960,1745775038564,-500.0,0.00019962,2]
[359176961,1745775038574,-480.0,0.00019962,2]
[359176962,1745775038583,-500.0,0.00019962,2]
[359176963,1745775038593,-500.0,0.00019962,2]
[359176964,1745775038602,-500.0,0.00019962,2]
[359176965,1745775038612,-480.0,0.00019962,2]
[359176966,1745775038622,-604.06199456,0.00019962,2]
[359176967,1745775038631,-480.0,0.00019962,2]
[359176968,1745775038641,-544.20003618,0.00019962,2]
[359176969,1745775038650,-500.0,0.00019962,2]
[359176970,1745775038660,-509.39,0.00019962,2]
[359176971,1745775038669,-529.63260458,0.00019962,2]
[359176972,1745775038678,-500.0,0.00019962,2]
[359176973,1745775038688,-500.0,0.00019962,2]
[359176974,1745775038697,-500.0,0.00019962,2]
[359176975,1745775038706,-500.0,0.00019962,2]
[359176976,1745775038715,-480.0,0.00019962,2]
[359176977,1745775038724,-500.0,0.00019962,2]
[359176978,1745775038734,-480.0,0.00019962,2]
[359176979,1745775038743,-520.33533874,0.00019962,2]
[359176980,1745775038753,-480.0,0.00019962,2]
[359176981,1745775038763,-594.25,0.00019962,2]
[359176982,1745775038772,-500.0,0.00019962,2]
[359176983,1745775038781,-480.0,0.00019962,2]
[359176984,1745775038790,-500.0,0.00019962,2]
[359176985,1745775038799,-569.90454869,0.00019962,2]
[359176986,1745775038808,-500.0,0.00019962,2]
[359176987,1745775038818,-480.0,0.00019962,2]
[359176988,1745775038827,-500.0,0.00019962,2]
[359176989,1745775038836,-500.0,0.00019962,2]
[359176990,1745775038846,-500.0,0.00019962,2]
[359176991,1745775038855,-500.0,0.00019962,2]
[359176992,1745775038864,-500.47060238,0.00019962,2]
[359176993,1745775038873,-523.42734274,0.00019962,2]
[359176994,1745775038882,-500.0,0.00019962,2]
[359176995,1745775038893,-480.0,0.00019962,2]
[359176996,1745775038902,-500.0,0.00019962,2]
[359176997,1745775038911,-583.71869875,0.00019962,2]
[359176998,1745775038921,-500.0,0.00019962,2]
[359176999,1745775038930,-500.0,0.00019962,2]
[359177000,1745775038939,-500.0,0.00019962,2]
[359177001,1745775038948,-500.0,0.00019962,2]
[359177002,1745775038958,-500.0,0.00019962,2]
[359177003,1745775038967,-505.0610593,0.00019962,2]
[359177004,1745775038976,-500.0,0.00019962,2]
[359177005,1745775038987,-507.51505974,0.00019962,2]
[359177006,1745775038999,-480.0,0.00019962,2]
[359177007,1745775039009,-508.88046641,0.00019962,2]
[359177008,1745775039018,-500.0,0.00019962,2]
[359177009,1745775039029,-480.0,0.00019962,2]
[359177010,1745775039040,-508.53070407,0.00019962,2]
[359177011,1745775039050,-500.0,0.00019962,2]
[359177012,1745775039060,-500.0,0.00019962,2]
[359177013,1745775039070,-480.0,0.00019962,2]
[359177014,1745775039079,-507.37459251,0.00019962,2]
[359177015,1745775039088,-500.0,0.00019962,2]
[359177016,1745775039098,-480.0,0.00019962,2]
[359177017,1745775039107,-500.0,0.00019962,2]
[359177018,1745775039116,-500.0,0.00019962,2]
[359177019,1745775039125,-500.0,0.00019962,2]
[359177020,1745775039135,-500.0,0.00019962,2]
[359177021,1745775039145,-480.0,0.00019962,2]
[359177022,1745775039154,-561.23,0.00019962,2]
[359177023,1745775039163,-500.0,0.00019962,2]
[359177024,1745775039172,-500.0,0.00019962,2]
[359177025,1745775039181,-500.0,0.00019962,2]
[359177026,1745775039191,-480.0,0.00019962,2]
[359177027,1745775039201,-253.861,0.00019972,2]
[359177028,1745775039210,-190.59112922,0.00019973,2]
[359177029,1745775039221,-11653.678303,0.00019986,2]
[359177030,1745775039233,-746.4130161,0.00019986,2]
[359177031,1745775039245,-271.11,0.00019988,2]
[359177032,1745775039254,-500.0,0.00019989,2]
[359177033,1745775039264,-202.04019429,0.0001999,2]
[359177034,1745775039273,-202.04019429,0.0001999,2]
[359177035,1745775039282,-549.39,0.00019998,2]
[359177036,1745775039291,-480.0,0.00019998,2]
[359177037,1745775039301,-308.75,0.00019998,2]
[359177038,1745775039310,-310.25,0.00019998,2]
[359177039,1745775039319,-305.45,0.00019998,2]
[359177040,1745775039329,-477.78,0.00019998,2]
[359177041,1745775039338,-480.0,0.00019998,2]
[359177042,1745775039347,-411.5,0.00019998,2]
[359177043,1745775039356,-460.97,0.00019998,2]
[359177044,1745775039366,-224.36,0.00019998,2]
[359177045,1745775039375,-585.93,0.00019998,2]
[359177046,1745775039385,-516.38,0.00019998,2]
[359177047,1745775039395,-311.59,0.00019998,2]
[359177048,1745775039406,-516.56,0.00019998,2]
[359177049,1745775039419,-597.86,0.00019998,2]
[359177050,1745775039429,-164.11,0.00019998,2]
[359177051,1745775039440,-184.18,0.00019998,2]
[359177052,1745775039450,-193.77,0.00019998,2]
[359177053,1745775039460,-443.76,0.00019998,2]
[359177054,1745775039469,-607.13,0.00019998,2]
[359177055,1745775039479,-197.47,0.00019998,2]
[359177056,1745775039489,-349.76,0.00019998,2]
[359177057,1745775039499,-190.26,0.00019998,2]
[359177058,1745775039509,-431.62,0.00019998,2]
[359177059,1745775039519,-312.09,0.00019998,2]
[359177060,1745775039528,-444.65,0.00019998,2]
[359177061,1745775039538,-343.02,0.00019998,2]
[359177062,1745775039547,-483.49,0.00019998,2]
[359177063,1745775039556,-499.83,0.00019998,2]
[359177064,1745775039565,-164.96,0.00019998,2]
[359177065,1745775039575,-480.0,0.00019998,2]
[359177066,1745775039584,-480.0,0.00019998,2]
[359177067,1745775039593,-480.0,0.00019998,2]
[359177068,1745775039602,-480.0,0.00019998,2]
[359177069,1745775039611,-412.74,0.00019998,2]
[359177071,1745775039620,-512.42,0.00019998,2]
[359177073,1745775039629,-480.0,0.00019998,2]
[359177075,1745775039639,-217.21,0.00019998,2]
[359177077,1745775039648,-480.0,0.00019998,2]
[359177079,1745775039657,-376.73,0.00019998,2]
[359177081,1745775039667,-568.59,0.00019998,2]
[359177083,1745775039676,-480.0,0.00019998,2]
[359177085,1745775039685,-238.68392285,0.00019998,2]
[359177087,1745775039694,-480.0,0.00019998,2]
[359177088,1745775039705,-629.21,0.00019998,2]
[359177089,1745775039715,-260.87,0.00019998,2]
[359177090,1745775039724,-500.0,0.00019998,2]
[359177091,1745775039733,-480.0,0.00019998,2]
[359177093,1745775039742,-500.0,0.00019998,2]
[359177095,1745775039751,-523.18,0.00019998,2]
[359177097,1745775039761,-500.0,0.00019998,2]
[359177099,1745775039771,-602.18,0.00019998,2]
[359177101,1745775039780,-500.0,0.00019998,2]
[359177103,1745775039791,-480.0,0.00019998,2]
[359177104,1745775039800,-480.0,0.00019998,2]
[359177105,1745775039809,-214.49,0.00019998,2]
[359177106,1745775039819,-170.78,0.00019998,2]
[359177107,1745775039828,-455.85,0.00019998,2]
[359177108,1745775039838,-218.43,0.00019998,2]
[359177109,1745775039848,-480.0,0.00019998,2]
[359177110,1745775039857,-190.6,0.00019998,2]
[359177111,1745775039867,-161.57,0.00019998,2]
[359177112,1745775039876,-500.0,0.00019998,2]
[359177113,1745775039885,-480.0,0.00019998,2]
[359177114,1745775039895,-356.29,0.00019998,2]
[359177115,1745775039904,-500.0,0.00019998,2]
[359177116,1745775039914,-360.45,0.00019998,2]
[359177117,1745775039923,-500.0,0.00019998,2]
[359177118,1745775039933,-480.0,0.00019998,2]
[359177119,1745775039942,-500.0,0.00019998,2]
[359177120,1745775039951,-480.0,0.00019998,2]
[359177121,1745775039961,-480.0,0.00019998,2]
[359177122,1745775039971,-480.0,0.00019998,2]
[359177123,1745775039982,-480.0,0.00019998,2]
[359177124,1745775039991,-480.0,0.00019998,2]
[359177125,1745775040001,-500.0,0.00019998,2]
[359177126,1745775040011,-434.33,0.00019998,2]
[359177127,1745775040021,-480.0,0.00019998,2]
[359177128,1745775040031,-480.0,0.00019998,2]
[359177129,1745775040040,-612.71,0.00019998,2]
[359177130,1745775040050,-500.0,0.00019998,2]
[359177131,1745775040059,-6500.7,0.00019998,2]
[359177132,1745775040068,-487.36,0.00019998,2]
[359177133,1745775040078,-480.0,0.00019998,2]
[359177134,1745775040087,-557.37,0.00019998,2]
[359177135,1745775040096,-480.0,0.00019998,2]
[359177136,1745775040106,-543.24,0.00019998,2]
[359177137,1745775040115,-500.0,0.00019998,2]
[359177138,1745775040124,-500.0,0.00019998,2]
[359177139,1745775040133,-500.0,0.00019998,2]
[359177140,1745775040142,-480.0,0.00019998,2]
[359177141,1745775040151,-293.16,0.00019998,2]
[359177142,1745775040161,-480.0,0.00019998,2]
[359177143,1745775040171,-480.0,0.00019998,2]
[359177144,1745775040180,-480.0,0.00019998,2]
[359177145,1745775040189,-500.0,0.00019998,2]
[359177146,1745775040198,-500.0,0.00019998,2]
[359177147,1745775040207,-480.0,0.00019998,2]
[359177148,1745775040217,-493.77,0.00019998,2]
[359177149,1745775040226,-480.0,0.00019998,2]
[359177150,1745775040235,-500.0,0.00019998,2]
[359177151,1745775040245,-534.93,0.00019998,2]
[359177152,1745775040254,-480.0,0.00019998,2]
[359177154,1745775040263,-500.0,0.00019998,2]
[359177156,1745775040272,-500.0,0.00019998,2]
[359177158,1745775040282,-522.85,0.00019998,2]
[359177160,1745775040292,-480.0,0.00019998,2]
[359177162,1745775040301,-480.0,0.00019998,2]
[359177164,1745775040310,-500.0,0.00019998,2]
[359177166,1745775040319,-480.0,0.00019998,2]
[359177168,1745775040329,-355.5,0.00019998,2]
[359177170,1745775040338,-1000.0,0.00019998,2]
[359177172,1745775040347,-480.0,0.00019998,2]
[359177190,1745775040508,-480.0,0.00019998,2]
[359177192,1745775040518,-396.72,0.00019998,2]
[359177194,1745775040528,-313.54,0.00019998,2]
[359177196,1745775040537,-480.0,0.00019998,2]
[359177198,1745775040547,-500.0,0.00019998,2]
[359177200,1745775040557,-480.0,0.00019998,2]
[359177202,1745775040567,-480.0,0.00019998,2]
[359177204,1745775040577,-480.0,0.00019998,2]
[359177206,1745775040587,-229.55,0.00019998,2]
[359177208,1745775040597,-500.0,0.00019998,2]
[359177210,1745775040608,-544.76,0.00019998,2]
[359177213,1745775040618,-480.0,0.00019998,2]
[359177214,1745775040628,-480.0,0.00019998,2]
[359177216,1745775040638,-523.23127724,0.00019998,2]
[359177218,1745775040647,-500.0,0.00019998,2]
[359177221,1745775040657,-480.0,0.00019998,2]
[359177223,1745775040667,-550.81754252,0.00019998,2]
[359177225,1745775040676,-480.0,0.00019998,2]
[359177227,1745775040685,-500.73115122,0.00019998,2]
[359177229,1745775040695,-500.0,0.00019998,2]
[359177231,1745775040704,-1143.43,0.00019998,2]
[359177233,1745775040714,-480.0,0.00019998,2]
[359177235,1745775040723,-480.0,0.00019998,2]
[359177237,1745775040732,-480.0,0.00019998,2]
[359177239,1745775040742,-500.0,0.00019998,2]
[359177241,1745775040751,-480.0,0.00019998,2]
[359177243,1745775040761,-500.0,0.00019998,2]
[359177245,1745775040770,-480.0,0.00019998,2]
[359177247,1745775040779,-500.0,0.00019998,2]
[359177248,1745775040789,-480.0,0.00019998,2]
[359177249,1745775040798,-271.78,0.00019998,2]
[359177252,1745775040808,-500.0,0.00019998,2]
[359177254,1745775040817,-2000.0,0.00019999,2]
[359177256,1745775040826,-56766.72,0.00019999,2]
[359177257,1745775040836,-480.0,0.00019999,2]
[359177258,1745775040845,-480.0,0.00019999,2]
[359177260,1745775040854,-480.0,0.00019999,2]
[359177263,1745775040863,-171.87932925,0.00019999,2]
[359177265,1745775040873,-480.94,0.00019999,2]
[359177266,1745775040882,-435.02,0.00019999,2]
[359177269,1745775040891,-495.51,0.00019999,2]
[359177271,1745775040900,-568.59,0.00019999,2]
[359177273,1745775040910,-568.59,0.00019999,2]
[359177275,1745775040920,-568.59,0.00019999,2]
[359177276,1745775040929,-568.59,0.00019999,2]
[359177278,1745775040939,-568.59,0.00019999,2]
[359177281,1745775040948,-568.59,0.00019999,2]
[359177283,1745775040958,-568.59,0.00019999,2]
[359177285,1745775040967,-568.59,0.00019999,2]
[359177286,1745775040977,-568.59,0.00019999,2]
[359177289,1745775040987,-232.08,0.00019999,2]
[359177291,1745775040997,-568.59,0.00019999,2]
[359177293,1745775041008,-568.59,0.00019999,2]
[359177295,1745775041018,-568.59,0.00019999,2]
[359177297,1745775041029,-568.59,0.00019999,2]
[359177299,1745775041039,-568.59,0.00019999,2]
[359177301,1745775041048,-568.59,0.00019999,2]
[359177303,1745775041058,-568.59,0.00019999,2]
[359177305,1745775041068,-568.59,0.00019999,2]
[359177307,1745775041079,-568.59,0.00019999,2]
[359177309,1745775041089,-568.59,0.00019999,2]
[359177311,1745775041098,-568.59,0.00019999,2]
[359177313,1745775041108,-568.59,0.00019999,2]
[359177315,1745775041117,-568.59,0.00019999,2]
[359177317,1745775041126,-568.63,0.00019999,2]
[359177319,1745775041136,-561.94,0.00019999,2]
[359177321,1745775041146,-276.44,0.00019999,2]
[359177323,1745775041156,-208.13,0.00019999,2]
[359177325,1745775041165,-576.34,0.00019999,2]
[359177326,1745775041174,-6127.93511734,0.00019999,2]
[359177327,1745775041183,-480.0,0.00019999,2]
[359177328,1745775041193,-480.0,0.00019999,2]
[359177329,1745775041203,-212.43,0.00019999,2]
[359177330,1745775041212,-378.84,0.00019999,2]
[359177331,1745775041222,-480.0,0.00019999,2]
[359177332,1745775041231,-480.0,0.00019999,2]
[359177333,1745775041241,-351.43,0.00019999,2]
[359177334,1745775041251,-494.45,0.00019999,2]
[359177335,1745775041263,-305.3,0.00019999,2]
[359177336,1745775041273,-175.75,0.00019999,2]
[359177337,1745775041282,-375.05,0.00019999,2]
[359177338,1745775041291,-480.0,0.00019999,2]
[359177339,1745775041300,-480.0,0.00019999,2]
[359177340,1745775041309,-187.30999999,0.00019999,2]
[359177341,1745775041318,-6500.7,0.00019999,2]
[359177343,1745775041328,-6500.7,0.00019999,2]
[359177345,1745775041338,-6500.7,0.00019999,2]
[359177347,1745775041350,-6500.7,0.00019999,2]
[359177349,1745775041360,-6500.7,0.00019999,2]
[359177351,1745775041369,-6500.7,0.00019999,2]
[359177353,1745775041379,-6500.7,0.00019999,2]
[359177355,1745775041388,-6500.7,0.00019999,2]
[359177357,1745775041397,-577.06,0.00019999,2]
[359177359,1745775041408,-6500.7,0.00019999,2]
[359177361,1745775041421,-6500.7,0.00019999,2]
[359177363,1745775041430,-6500.7,0.00019999,2]
[359177365,1745775041440,-6500.7,0.00019999,2]
[359177367,1745775041450,-6500.7,0.00019999,2]
[359177369,1745775041461,-6500.7,0.00019999,2]
[359177371,1745775041471,-6500.7,0.00019999,2]
[359177373,1745775041480,-6500.7,0.00019999,2]
[359177375,1745775041492,-6500.7,0.00019999,2]
[359177377,1745775041502,-6500.7,0.00019999,2]
[359177379,1745775041513,-6500.7,0.00019999,2]
[359177381,1745775041523,-6500.7,0.00019999,2]
[359177383,1745775041532,-340.87,0.00019999,2]
[359177385,1745775041542,-6500.7,0.00019999,2]
[359177387,1745775041551,-6500.7,0.00019999,2]
[359177389,1745775041561,-6500.90805718,0.00019999,2]
[359177391,1745775041571,-448.04,0.00019999,2]
[359177393,1745775041580,-449.58,0.00019999,2]
[359177395,1745775041590,-480.0,0.00019999,2]
[359177397,1745775041599,-159.43,0.00019999,2]
[359177399,1745775041609,-538.43,0.00019999,2]
[359177401,1745775041618,-229.74,0.00019999,2]
[359177403,1745775041627,-345.01,0.00019999,2]
[359177406,1745775041637,-534.93,0.00019999,2]
[359177407,1745775041646,-534.93,0.00019999,2]
[359177410,1745775041656,-534.93,0.00019999,2]
[359177412,1745775041665,-534.93,0.00019999,2]
[359177413,1745775041674,-534.93,0.00019999,2]
[359177416,1745775041683,-480.0,0.00019999,2]